bitfinex/quotes_BTCUSD_20240815
["timestamp","ask_amount","ask_price","bid_price","bid_amount"]
[1723751455613,0.02615031,57255.0,57254.0,0.08577727]
[1723751456070,0.174661,57254.0,57248.0,0.08577727]
[1723751456274,0.03284758,57255.0,57248.0,0.08577727]
[1723751456481,0.03284758,57255.0,57241.0,0.2454]
[1723751456482,0.17825022,57253.0,57241.0,0.2454]
[1723751456685,0.02615031,57255.0,57248.0,0.08577727]
[1723751456890,0.00669568,57252.0,57248.0,0.08577727]
[1723751457094,0.20080831,57255.0,57248.0,0.08577727]
[1723751457344,0.00669568,57251.0,57248.0,0.08577727]
[1723751457548,0.349321,57254.0,57249.0,0.08577727]
[1723751457750,0.00669568,57250.0,57249.0,0.08577727]
[1723751457978,0.174669,57251.0,57249.0,0.08577727]
[1723751458180,0.174669,57251.0,57250.0,0.00364879]
[1723751458390,0.873345,57251.0,57250.0,0.00364879]
[1723751458608,0.02615031,57255.0,57250.0,0.08942606]
[1723751460201,0.20080731,57255.0,57250.0,0.08942606]
[1723751460461,0.174669,57251.0,57250.0,0.00364879]
[1723751460701,0.19455454,57254.0,57250.0,0.00364879]
[1723751460904,0.524007,57251.0,57250.0,0.00364879]
[1723751461346,0.02615031,57255.0,57250.0,0.00364879]
[1723751461592,0.02615031,57255.0,57252.0,0.08577727]
[1723751461849,0.20080931,57255.0,57252.0,0.08577727]
[1723751462093,0.174669,57251.0,57250.0,0.00364879]
[1723751462328,0.02615031,57255.0,57250.0,0.00364879]
[1723751462329,0.02615031,57255.0,57252.0,0.08577727]
[1723751463044,0.02615031,57255.0,57250.0,0.00364879]
[1723751463254,0.19766,57254.0,57250.0,0.00364879]
[1723751463476,0.023,57254.0,57251.0,0.08577727]
[1723751463942,0.02615031,57255.0,57251.0,0.08577727]
[1723751465353,0.02615031,57255.0,57251.0,0.12054988]
[1723751465555,0.02615031,57255.0,57251.0,0.08577727]
[1723751465748,0.00615878,57254.0,57251.0,0.08577727]
[1723751466298,0.02615031,57255.0,57251.0,0.08577727]
[1723751466299,0.000902,57255.0,57254.0,0.42856]
[1723751466513,0.000902,57255.0,57254.0,1.4209312]
[1723751466728,0.000902,57255.0,57254.0,0.2539]
[1723751467154,0.000902,57255.0,57251.0,0.08577727]
[1723751467370,0.174669,57251.0,57250.0,0.00364879]
[1723751467609,0.17155454,57254.0,57250.0,0.00364879]
[1723751467831,0.87951171,57251.0,57250.0,0.00364879]
[1723751468057,0.90251171,57251.0,57250.0,0.00364879]
[1723751468269,1.77943754,57251.0,57250.0,0.00364879]
[1723751468483,1.78541636,57251.0,57250.0,0.00364879]
[1723751468704,2.32455436,57251.0,57250.0,0.00364879]
[1723751468947,2.03348226,57251.0,57250.0,0.00364879]
[1723751469604,1.69458186,57251.0,57250.0,0.00364879]
[1723751469819,1.52587836,57251.0,57250.0,0.00364879]
[1723751470684,1.62587836,57251.0,57250.0,0.00364879]
[1723751470891,2.0334737,57251.0,57250.0,0.00364879]
[1723751471116,1.97521636,57251.0,57250.0,0.00364879]
[1723751471323,1.62587836,57251.0,57250.0,0.00364879]
[1723751471769,1.97521636,57251.0,57250.0,0.00364879]
[1723751472198,2.03350342,57251.0,57250.0,0.00364879]
[1723751472611,1.97521636,57251.0,57250.0,0.00364879]
[1723751473712,1.62587836,57251.0,57250.0,0.00364879]
[1723751474140,1.97521636,57251.0,57250.0,0.00364879]
[1723751474347,2.32455436,57251.0,57250.0,0.00364879]
[1723751474562,2.03352531,57251.0,57250.0,0.00364879]
[1723751475648,1.97521636,57251.0,57250.0,0.00364879]
[1723751475860,1.97521636,57251.0,57250.0,0.00446879]
[1723751476066,1.97521636,57251.0,57224.0,0.2429]
[1723751476067,0.2616,57237.0,57224.0,0.2429]
[1723751476274,0.174737,57229.0,57224.0,0.2429]
[1723751476474,0.19455454,57236.0,57224.0,0.2429]
[1723751476475,0.20113117,57236.0,57224.0,0.2429]
[1723751476683,0.00657622,57228.0,57224.0,0.2429]
[1723751476887,0.19455454,57236.0,57224.0,0.2429]
[1723751476888,0.174725,57233.0,57224.0,0.2429]
[1723751477093,0.174725,57233.0,57232.0,0.08577727]
[1723751477301,0.349413,57239.0,57232.0,0.08577727]
[1723751477525,0.19771,57238.0,57232.0,0.08577727]
[1723751477737,0.17155454,57237.0,57224.0,0.2429]
[1723751477958,0.349463,57231.0,57224.0,0.27576773]
[1723751478171,0.349463,57231.0,57224.0,0.2429]
[1723751478380,0.174726,57233.0,57229.0,0.08577727]
[1723751478598,0.023,57232.0,57229.0,0.08577727]
[1723751479235,0.174733,57230.0,57229.0,0.08577727]
[1723751479439,0.023,57232.0,57224.0,0.2429]
[1723751479661,0.349468,57230.0,57224.0,0.2429]
[1723751479878,0.174747,57226.0,57224.0,0.2429]
[1723751480269,0.17155454,57231.0,57219.0,0.26672]
[1723751480270,0.349497,57225.0,57219.0,0.26672]
[1723751480527,0.17155454,57225.0,57219.0,0.26672]
[1723751480731,0.123,57230.0,57219.0,0.26672]
[1723751480732,0.87382,57220.0,57219.0,0.00082]
[1723751480949,1.28977454,57220.0,57219.0,0.00082]
[1723751481153,1.41277454,57220.0,57219.0,0.00082]
[1723751481361,1.76230254,57220.0,57219.0,0.00082]
[1723751481561,1.95990254,57220.0,57219.0,0.00082]
[1723751481796,2.30943054,57220.0,57219.0,0.00082]
[1723751482005,2.30943054,57220.0,57214.0,0.000816]
[1723751482006,1.469953,57215.0,57214.0,0.000816]
[1723751482212,2.11406554,57215.0,57214.0,0.000816]
[1723751482423,2.12042711,57215.0,57214.0,0.000816]
[1723751484070,0.349589,57210.0,57187.0,0.0082]
[1723751484270,0.34968,57195.0,57187.0,0.0082]
[1723751484472,0.69607454,57195.0,57192.0,0.0082]
[1723751484677,0.72521493,57195.0,57192.0,0.0082]
[1723751485516,1.07489493,57195.0,57192.0,0.0082]
[1723751485734,1.42457493,57195.0,57192.0,0.0082]
[1723751486164,1.87425493,57195.0,57192.0,0.0082]
[1723751486379,2.12855493,57195.0,57192.0,0.0082]
[1723751487489,2.12855493,57195.0,57194.0,0.0032]
[1723751488619,1.223904,57194.0,57192.0,0.0082]
[1723751488892,2.11414554,57194.0,57192.0,0.0082]
[1723751489114,2.16078425,57194.0,57192.0,0.0082]
[1723751489545,2.12023931,57194.0,57192.0,0.0082]
[1723751492125,1.223925,57193.0,57192.0,0.0082]
[1723751492334,0.978022,57184.0,57180.0,0.0082]
[1723751492551,1.84907254,57184.0,57180.0,0.0082]
[1723751492758,2.32776689,57184.0,57180.0,0.0082]
[1723751492967,2.32276689,57184.0,57180.0,0.0082]
[1723751493184,0.4534,57167.0,57156.0,0.09397727]
[1723751493386,0.524869,57157.0,57156.0,0.0082]
[1723751493589,1.39624954,57157.0,57156.0,0.0082]
[1723751493810,0.82523688,57157.0,57156.0,0.0082]
[1723751494019,0.47532388,57157.0,57156.0,0.0082]
[1723751494230,0.82523688,57157.0,57156.0,0.0082]
[1723751494504,0.20036788,57157.0,57156.0,0.0082]
[1723751495318,1.59758477,57157.0,57156.0,0.0082]
[1723751495528,1.52506288,57157.0,57156.0,0.0082]
[1723751495786,2.05727588,57157.0,57156.0,0.0082]
[1723751496023,2.40718888,57157.0,57156.0,0.0082]
[1723751496501,2.05727588,57157.0,57156.0,0.0082]
[1723751496724,2.10073748,57157.0,57156.0,0.0082]
[1723751496924,2.05727588,57157.0,57156.0,0.0082]
[1723751497340,2.10073748,57157.0,57156.0,0.0082]
[1723751497816,2.11135228,57157.0,57156.0,0.0082]
[1723751498039,2.06789068,57157.0,57156.0,0.0082]
[1723751498509,1.71797768,57157.0,57156.0,0.0082]
[1723751499777,1.53567768,57157.0,57156.0,0.0082]
[1723751500206,1.18576468,57157.0,57156.0,0.0082]
[1723751500436,1.43567768,57157.0,57156.0,0.0082]
[1723751500643,1.78559068,57157.0,57156.0,0.0082]
[1723751501633,1.88559068,57157.0,57156.0,0.0082]
[1723751502292,1.53567768,57157.0,57156.0,0.0082]
[1723751502692,1.53567768,57157.0,57130.0,0.43585027]
[1723751502693,0.52497,57146.0,57124.0,0.01069207]
[1723751502895,0.52497,57146.0,57099.0,0.02]
[1723751502896,0.008,57111.0,57100.0,0.001]
[1723751503135,0.008,57111.0,57084.0,0.12924871]
[1723751503136,0.008,57111.0,57079.0,0.99247973]
[1723751503337,0.008,57111.0,57023.0,0.00011]
[1723751503808,0.008,57111.0,57051.0,0.2654308]
[1723751504053,0.008,57111.0,56966.0,0.00046]
[1723751504054,0.08577727,57063.0,57041.0,0.12975815]
[1723751504324,0.08577727,57069.0,56997.0,0.51466362]
[1723751504325,1.7759,56998.0,56997.0,0.31757362]
[1723751504559,1.7759,56998.0,56977.0,0.08577727]
[1723751504560,1.228433,56983.0,56977.0,0.08577727]
[1723751504818,0.175506,56978.0,56977.0,0.08577727]
[1723751505051,0.175524,56972.0,56963.0,0.08744458]
[1723751505267,0.05259427,56978.0,56951.0,0.08746444]
[1723751505268,0.282951,56977.0,56951.0,0.08746444]
[1723751505518,0.282951,56977.0,56968.0,0.03347773]
[1723751505519,0.175528,56971.0,56968.0,0.03347773]
[1723751505749,0.282951,56970.0,56951.0,0.08746444]
[1723751506025,0.282951,56970.0,56943.0,0.351226]
[1723751506026,0.282951,56970.0,56968.0,0.1996]
[1723751506027,0.00796228,56970.0,56968.0,0.1996]
[1723751506479,0.070314,56983.0,56968.0,0.1996]
[1723751506480,0.070314,56983.0,56969.0,0.17155454]
[1723751506727,0.070314,56983.0,56982.0,0.175494]
[1723751506933,0.77706362,57026.0,56982.0,0.37115454]
[1723751506934,0.002,57017.0,56982.0,0.37115454]
[1723751507160,0.175409,57010.0,56982.0,0.37115454]
[1723751507359,0.070285,57001.0,56997.0,0.08577727]
[1723751507568,0.070285,57001.0,56993.0,0.175458]
[1723751507772,0.51466362,57009.0,56994.0,0.17155454]
[1723751507982,0.070276,57008.0,56995.0,0.08577727]
[1723751508182,0.070276,57008.0,56991.0,0.08577727]
[1723751508401,0.070276,57008.0,56991.0,0.26124127]
[1723751508598,0.002,57007.0,56992.0,0.19767867]
[1723751508800,0.002,57007.0,56992.0,0.17155454]
[1723751509018,0.002,57010.0,56993.0,0.2532]
[1723751509180,0.17155454,57009.0,56993.0,0.2532]
[1723751509385,0.070276,57012.0,56997.0,0.08577727]
[1723751509585,0.070276,57012.0,57011.0,0.175404]
[1723751509792,0.51466362,57022.0,57020.0,0.175377]
[1723751509996,0.51466362,57022.0,57015.0,0.08577727]
[1723751510191,0.002,57033.0,57010.0,0.2594]
[1723751510393,0.002,57029.0,57011.0,0.25956172]
[1723751510594,0.002,57029.0,57010.0,0.2594]
[1723751510595,0.08577727,57025.0,57010.0,0.2594]
[1723751510980,0.002,57022.0,57010.0,0.2594]
[1723751511173,0.19748772,57025.0,57010.0,0.2594]
[1723751511174,0.17155454,57025.0,57010.0,0.2594]
[1723751511396,0.175337,57033.0,57017.0,0.26116327]
[1723751511608,0.17155454,57034.0,57019.0,0.175377]
[1723751511829,0.17155454,57034.0,57011.0,0.25733181]
[1723751512037,0.175314,57041.0,57026.0,0.175358]
[1723751512240,0.51466362,57039.0,57020.0,0.08577727]
[1723751512422,0.69355427,57049.0,57020.0,0.17155454]
[1723751512423,0.350651,57037.0,57020.0,0.17155454]
[1723751512626,0.34097727,57049.0,57012.0,0.1]
[1723751512627,0.350635,57040.0,57021.0,0.17506075]
[1723751512860,0.350662,57035.0,57021.0,0.17506075]
[1723751513084,0.002,57027.0,57010.0,0.2594]
[1723751513294,0.175404,57011.0,57010.0,0.2594]
[1723751513548,0.526154,57011.0,57010.0,0.2594]
[1723751513764,0.175404,57011.0,57010.0,0.2594]
[1723751514023,0.002,57014.0,57010.0,0.2594]
[1723751514228,0.002,57014.0,56981.0,0.02]
[1723751514229,0.175423,57005.0,56999.0,0.2501]
[1723751514448,0.002,57007.0,56983.0,0.43675527]
[1723751514449,0.002,57007.0,56985.0,0.194]
[1723751514654,0.175435,57002.0,56986.0,0.34703554]
[1723751514859,0.175446,56998.0,56986.0,0.17155454]
[1723751515487,0.51466362,57008.0,56985.0,0.194]
[1723751515488,0.350882,57000.0,56985.0,0.194]
[1723751515721,0.002,56996.0,56985.0,0.194]
[1723751515928,0.1,56999.0,56985.0,0.194]
[1723751515929,0.350908,56995.0,56985.0,0.194]
[1723751516134,0.175471,56990.0,56976.0,0.175511]
[1723751516342,0.0350908,56994.0,56977.0,0.17155454]
[1723751516543,0.1,56999.0,56977.0,0.17155454]
[1723751516754,0.350908,56995.0,56977.0,0.17155454]
[1723751516981,0.08577727,56998.0,56977.0,0.17155454]
[1723751517189,0.175481,56986.0,56977.0,0.17155454]
[1723751517399,0.17155454,56997.0,56977.0,0.17155454]
[1723751517400,0.002,56990.0,56977.0,0.17155454]
[1723751517601,0.175476,56988.0,56977.0,0.17155454]
[1723751517808,0.350933,56991.0,56977.0,0.17155454]
[1723751518014,0.60244089,56992.0,56968.0,0.437824]
[1723751518214,0.60244089,56992.0,56971.0,0.175526]
[1723751518215,0.08777727,56992.0,56971.0,0.175526]
[1723751518428,0.002,56982.0,56972.0,0.17155454]
[1723751518643,0.002,56990.0,56976.0,0.17551]
[1723751518877,0.51466362,56992.0,56977.0,0.17155454]
[1723751519085,0.56612998,56992.0,56975.0,0.175513]
[1723751519318,0.56612998,56992.0,56975.0,0.17155454]
[1723751519319,0.350934,56991.0,56975.0,0.17155454]
[1723751519550,0.350934,56991.0,56968.0,0.437824]
[1723751519551,0.08577727,56987.0,56968.0,0.437824]
[1723751519727,0.002,56974.0,56968.0,0.437824]
[1723751520208,0.002,56987.0,56969.0,0.17155454]
[1723751520433,0.51466362,56986.0,56973.0,0.17552]
[1723751520679,0.002,56986.0,56974.0,0.17155454]
[1723751520926,0.350922,56993.0,56974.0,0.17155454]
[1723751521207,0.177447,56997.0,56975.0,0.08577727]
[1723751521421,0.352896,56997.0,56976.0,0.17155454]
[1723751521643,0.350875,57001.0,56980.0,0.350999]
[1723751521644,0.352875,57001.0,56980.0,0.350999]
[1723751521869,0.352875,57001.0,56975.0,0.08577727]
[1723751521870,0.1,57000.0,56984.0,0.08577727]
[1723751522081,0.86549962,57007.0,56991.0,0.08577727]
[1723751522288,0.86549962,57007.0,56992.0,0.35545454]
[1723751522289,0.175426,57004.0,56992.0,0.35545454]
[1723751522499,0.86550062,57007.0,56992.0,0.35545454]
[1723751522500,0.352841,57006.0,56992.0,0.35545454]
[1723751522706,0.17155454,57004.0,56992.0,0.1839]
[1723751522913,0.002,57006.0,56992.0,0.1839]
[1723751523358,0.177421,57006.0,56992.0,0.35545454]
[1723751523573,0.08577727,57030.0,56993.0,0.32797116]
[1723751523574,0.002,57020.0,56993.0,0.32797116]
[1723751523771,0.33397727,57030.0,56993.0,0.27155454]
[1723751523772,0.002,57006.0,56993.0,0.27155454]
[1723751524250,0.002,57012.0,56994.0,0.2628]
[1723751524499,0.08668367,57022.0,56998.0,0.08577727]
[1723751524500,0.002,57020.0,56998.0,0.08577727]
[1723751524738,0.0009064,57022.0,57004.0,0.08577727]
[1723751525014,0.0009064,57022.0,57010.0,0.350815]
[1723751525236,0.51466362,57021.0,57011.0,0.1819]
[1723751525446,0.51466362,57021.0,57001.0,0.2578]
[1723751525447,0.002,57014.0,57001.0,0.2578]
[1723751525650,0.002,57014.0,57003.0,0.175429]
[1723751525873,0.002,57014.0,57001.0,0.2578]
[1723751526187,0.0009064,57022.0,57004.0,0.17155454]
[1723751526314,0.0009064,57022.0,57002.0,0.08577727]
[1723751526315,0.0009064,57022.0,57008.0,0.08577727]
[1723751526528,0.0009064,57022.0,57009.0,0.19728772]
[1723751526739,0.0009064,57022.0,57019.0,0.175377]
[1723751526947,0.0009064,57022.0,57020.0,0.17155454]
[1723751527875,0.0009064,57022.0,57021.0,1.309667]
[1723751528101,0.0009064,57022.0,57021.0,0.60435454]
[1723751528308,0.0009064,57022.0,57021.0,0.77972754]
[1723751528513,0.0009064,57022.0,57021.0,1.13047454]
[1723751529369,0.0009064,57022.0,57021.0,0.60435454]
[1723751529800,0.0009064,57022.0,57021.0,0.4328]
[1723751530013,0.0009064,57022.0,57021.0,0.60435454]
[1723751530221,0.1762764,57022.0,57021.0,0.1844]
[1723751530464,0.1762764,57022.0,56982.0,0.370985]
[1723751530465,0.350769,57018.0,57013.0,0.2484]
[1723751530685,0.08577727,57018.0,57003.0,0.255]
[1723751530889,0.175415,57008.0,57003.0,0.42655454]
[1723751531120,0.175415,57008.0,56987.0,0.350952]
[1723751531121,0.08577727,57006.0,56997.0,0.4473]
[1723751531356,0.352857,57004.0,56997.0,0.4473]
[1723751531564,0.352857,57004.0,56998.0,0.17155454]
[1723751531565,0.175427,57004.0,56998.0,0.17155454]
[1723751531791,0.002,57006.0,56998.0,0.17155454]
[1723751532044,0.51466362,57016.0,56998.0,0.17155454]
[1723751532045,0.002,57014.0,56998.0,0.17155454]
[1723751532489,0.08577727,57012.0,56998.0,0.17155454]
[1723751532673,0.002,57009.0,56999.0,0.350882]
[1723751532933,0.002,57009.0,57002.0,0.175431]
[1723751533180,0.002,57009.0,57004.0,0.175424]
[1723751533431,0.0009064,57022.0,57006.0,0.350839]
[1723751533432,0.1782784,57022.0,57006.0,0.350839]
[1723751533684,0.1782784,57022.0,56998.0,0.450885]
[1723751533685,0.002,57006.0,56998.0,0.17155454]
[1723751533938,0.002,57008.0,56999.0,0.34699454]
[1723751534160,0.002,57008.0,56999.0,0.17155454]
[1723751534826,0.350787,57015.0,56999.0,0.17155454]
[1723751534827,0.002,57007.0,56999.0,0.17155454]
[1723751535011,0.002,57014.0,57003.0,0.175427]
[1723751535252,0.002,57014.0,57004.0,0.17155454]
[1723751535464,0.002,57010.0,56998.0,0.17155454]
[1723751535677,0.002,57010.0,56999.0,0.17155454]
[1723751535889,0.43742867,57022.0,56999.0,0.17155454]
[1723751535890,0.002,57014.0,57003.0,0.350855]
[1723751536110,0.002,57014.0,57004.0,0.17155454]
[1723751536320,0.002,57014.0,56997.0,0.4473]
[1723751536321,0.002,57006.0,56997.0,0.4473]
[1723751536505,0.002,57006.0,56997.0,0.61885454]
[1723751536506,0.175424,57005.0,56997.0,0.61885454]
[1723751536746,0.002,57012.0,56998.0,0.17155454]
[1723751537165,0.002,57012.0,56997.0,0.4473]
[1723751537166,0.08577727,57010.0,56997.0,0.4473]
[1723751537371,0.175418,57007.0,56997.0,0.61885454]
[1723751537580,0.002,57010.0,56998.0,0.17155454]
[1723751537781,0.350809,57011.0,56998.0,0.17155454]
[1723751537995,0.002,57016.0,56998.0,0.17155454]
[1723751538205,0.002,57016.0,57005.0,0.08577727]
[1723751538419,0.002,57016.0,57006.0,0.17155454]
[1723751538635,0.177416,57008.0,57000.0,0.17155454]
[1723751538841,0.08577727,57015.0,57000.0,0.17155454]
[1723751538842,0.002,57012.0,57001.0,0.175432]
[1723751539053,0.002,57012.0,57002.0,0.17155454]
[1723751539308,0.002,57012.0,56998.0,0.17155454]
[1723751539523,0.002,57012.0,57007.0,0.1]
[1723751539733,0.002,57016.0,57008.0,0.07155454]
[1723751539941,0.002,57016.0,56999.0,0.350877]
[1723751540161,0.002,57016.0,57002.0,0.09528984]
[1723751540378,0.25733181,57015.0,57000.0,0.1]
[1723751540593,0.25733181,57015.0,56997.0,0.4576254]
[1723751540594,0.002,57010.0,56997.0,0.4576254]
[1723751540812,0.002,57010.0,56998.0,0.09617091]
[1723751541015,0.002,57008.0,56998.0,0.09617091]
[1723751541224,0.177414,57008.0,56998.0,0.09617091]
[1723751541429,0.002,57008.0,56998.0,0.27161391]
[1723751541677,0.002,57016.0,56999.0,0.24456087]
[1723751541905,0.002,57016.0,57000.0,0.1]
[1723751542137,0.002,57016.0,57008.0,0.175413]
[1723751542404,0.002,57016.0,57005.0,0.350844]
[1723751542609,0.0029064,57022.0,57008.0,0.17155454]
[1723751542813,0.0029064,57022.0,57009.0,0.27506174]
[1723751542814,0.0009064,57022.0,57009.0,0.27506174]
[1723751543020,0.0009064,57022.0,57010.0,0.2925]
[1723751543235,0.0009064,57022.0,57011.0,0.17506163]
[1723751543447,0.0009064,57022.0,57012.0,0.36605616]
[1723751543659,0.0009064,57022.0,57016.0,0.350777]
[1723751543877,0.0009064,57022.0,57021.0,0.52612]
[1723751544090,0.0009064,57022.0,57021.0,0.44692754]
[1723751544481,0.0009064,57022.0,57021.0,0.79767454]
[1723751544720,0.0009064,57022.0,57021.0,0.91251829]
[1723751544928,0.0009064,57022.0,57021.0,1.26326529]
[1723751545138,0.0009064,57022.0,57021.0,0.44692754]
[1723751545352,0.0009064,57022.0,57014.0,0.2957]
[1723751546213,0.175378,57020.0,57014.0,0.2957]
[1723751546450,0.002,57019.0,57014.0,0.2957]
[1723751546686,0.0009064,57022.0,56998.0,0.3032]
[1723751546687,0.175414,57008.0,56998.0,0.3032]
[1723751546901,0.3508,57013.0,56998.0,0.3032]
[1723751546902,0.002,57007.0,56998.0,0.3032]
[1723751547110,0.002,57005.0,56998.0,0.3032]
[1723751547318,0.002,57003.0,56998.0,0.3032]
[1723751547523,0.002,57003.0,56997.0,0.000824]
[1723751547524,0.08777727,57001.0,56997.0,0.000824]
[1723751547743,0.002,57001.0,56997.0,0.000824]
[1723751547952,0.175444,56998.0,56997.0,0.000824]
[1723751548159,0.00579754,56998.0,56997.0,0.000824]
[1723751548370,0.002,57005.0,56997.0,0.000824]
[1723751548575,0.05054078,57001.0,56997.0,0.000824]
[1723751548787,0.00579763,57000.0,56997.0,0.000824]
[1723751549654,0.00579763,57001.0,56998.0,0.17155454]
[1723751549868,0.00579763,57003.0,57002.0,0.175432]
[1723751550104,0.00579763,57005.0,57002.0,0.17155454]
[1723751550528,0.05054078,57005.0,57002.0,0.34698654]
[1723751550742,0.00579763,57004.0,57002.0,0.17155454]
[1723751550975,0.00579763,57004.0,56997.0,0.000824]
[1723751550976,0.05054078,57004.0,56997.0,0.000824]
[1723751551187,0.00579763,57003.0,56998.0,0.18918194]
[1723751551398,0.0566332,57003.0,56999.0,0.1]
[1723751551679,0.05083557,57003.0,57002.0,0.175432]
[1723751551899,0.00579662,57003.0,57002.0,0.17155454]
[1723751552145,0.00579662,57003.0,57002.0,0.21625319]
[1723751552377,0.05083557,57005.0,57002.0,0.17155454]
[1723751552378,0.05663219,57004.0,57002.0,0.17155454]
[1723751552607,0.05663219,57003.0,57001.0,0.175435]
[1723751552887,0.05086134,57010.0,57002.0,0.686132]
[1723751553109,0.03106626,57018.0,57011.0,0.1973]
[1723751553322,0.61665159,57022.0,57021.0,0.52612]
[1723751553323,0.51557002,57022.0,57021.0,0.52612]
[1723751553540,0.07581117,57031.0,57024.0,0.350725]
[1723751553754,0.10108157,57034.0,57029.0,0.526047]
[1723751553755,0.00579382,57030.0,57029.0,0.526047]
[1723751553995,0.002,57043.0,57029.0,0.526047]
[1723751553996,0.00579382,57033.0,57032.0,0.52602]
[1723751554220,0.00579382,57034.0,57033.0,0.876685]
[1723751554439,0.00579382,57036.0,57033.0,0.27155454]
[1723751554661,0.52045744,57039.0,57034.0,0.1]
[1723751554865,0.08577727,57034.0,57027.0,0.1]
[1723751555074,0.07581117,57039.0,57028.0,0.17155454]
[1723751555299,0.00579338,57038.0,57028.0,0.17155454]
[1723751555561,0.00779338,57039.0,57029.0,0.17155454]
[1723751555783,0.08577727,57034.0,57029.0,0.17505586]
[1723751555995,0.00579338,57033.0,57025.0,0.2744]
[1723751556201,0.08577727,57028.0,57025.0,0.2744]
[1723751556614,0.08577727,57028.0,57023.0,0.1996]
[1723751556854,0.00579421,57027.0,57023.0,0.1996]
[1723751557061,0.00579421,57027.0,57018.0,0.1]
[1723751557271,0.00579421,57027.0,57019.0,0.17155454]
[1723751557484,0.00579421,57027.0,57023.0,0.175367]
[1723751557716,0.002,57033.0,57023.0,0.175367]
[1723751557717,0.00779423,57033.0,57023.0,0.175365]
[1723751557949,0.00779423,57033.0,57022.0,0.526108]
[1723751558205,0.00579423,57033.0,57023.0,0.17155454]
[1723751558425,0.00579423,57037.0,57028.0,0.175349]
[1723751558640,0.002,57039.0,57023.0,0.17155454]
[1723751558641,0.00579423,57039.0,57023.0,0.17155454]
[1723751558853,0.002,57036.0,57026.0,0.175358]
[1723751559059,0.002,57036.0,57023.0,0.17155454]
[1723751559060,0.26111227,57034.0,57023.0,0.17155454]
[1723751559266,0.08777727,57034.0,57023.0,0.17155454]
[1723751559481,0.08777727,57040.0,57028.0,0.350699]
[1723751559687,0.08777727,57040.0,57024.0,0.01715545]
[1723751559688,0.08777727,57043.0,57032.0,0.175338]
[1723751559896,0.08777727,57043.0,57033.0,0.17155454]
[1723751560108,0.08577727,57043.0,57033.0,0.17155454]
[1723751560318,0.350613,57043.0,57033.0,0.17155454]
[1723751560525,0.002,57046.0,57033.0,0.46235454]
[1723751560705,0.00906401,57047.0,57033.0,0.46235454]
[1723751560706,0.002,57043.0,57033.0,0.46235454]
[1723751560910,0.35965601,57047.0,57033.0,0.46235454]
[1723751560911,0.00579334,57046.0,57033.0,0.46235454]
[1723751561123,0.001,57046.0,57034.0,0.350666]
[1723751561331,0.00906401,57047.0,57039.0,0.350632]
[1723751561539,0.00906401,57047.0,57040.0,0.17155454]
[1723751561979,0.00906401,57047.0,57033.0,0.30403534]
[1723751561980,0.002,57044.0,57033.0,0.30403534]
[1723751562191,0.08577727,57040.0,57025.0,0.2799]
[1723751562414,0.08577727,57040.0,57013.0,0.01]
[1723751562415,0.08577727,57028.0,57018.0,0.2799]
[1723751562616,0.08577727,57028.0,57016.0,0.1845]
[1723751562617,0.08577727,57028.0,57020.0,0.01323142]
[1723751562827,0.08577727,57022.0,57011.0,0.2914]
[1723751563031,0.08577727,57022.0,57016.0,0.01289262]
[1723751563266,0.08577727,57016.0,57002.0,0.2914]
[1723751563480,0.08577727,57016.0,56989.0,0.03499]
[1723751563481,0.46317536,57082.0,57024.0,0.350724]
[1723751563686,0.43449683,57082.0,57029.0,0.01]
[1723751563906,0.00902001,57092.0,57029.0,0.01]
[1723751564136,1.83830574,57176.0,57029.0,0.01]
[1723751564137,0.12354224,57119.0,57086.0,1.2793]
[1723751564396,0.28041844,57142.0,57086.0,1.2793]
[1723751564397,0.23991954,57187.0,57177.0,0.7667331]
[1723751564620,0.349574,57213.0,57212.0,0.534365]
[1723751564621,0.08795217,57213.0,57212.0,0.534365]
[1723751564835,0.08795217,57213.0,57212.0,0.786165]
[1723751565094,0.08795217,57213.0,57212.0,0.2848]
[1723751565338,0.08795217,57213.0,57212.0,2.01637163]
[1723751565579,0.08795217,57213.0,57212.0,1.58679463]
[1723751565812,0.08795217,57213.0,57212.0,1.88134917]
[1723751566051,0.08795217,57213.0,57212.0,1.85834917]
[1723751566286,0.08795217,57213.0,57212.0,1.60654917]
[1723751566525,0.08795217,57213.0,57212.0,2.11678109]
[1723751566759,0.08795217,57213.0,57212.0,2.09678109]
[1723751567104,0.08795217,57213.0,57212.0,1.24020663]
[1723751567335,0.08795217,57213.0,57212.0,1.16020663]
[1723751567797,0.09595257,57213.0,57212.0,1.16020663]
[1723751568034,0.09595257,57213.0,57212.0,1.14020663]
[1723751568301,0.45250711,57213.0,57212.0,1.13020663]
[1723751568542,0.72999527,57213.0,57212.0,0.21943232]
[1723751568755,0.45250711,57213.0,57212.0,0.21943232]
[1723751568964,0.45250711,57213.0,57212.0,0.22943232]
[1723751569174,0.45250711,57213.0,57212.0,0.24943232]
[1723751569175,0.0080004,57213.0,57212.0,0.24943232]
[1723751569402,0.0080004,57213.0,57212.0,0.204788]
[1723751569859,0.1892,57225.0,57215.0,0.01]
[1723751570068,0.17155454,57224.0,57215.0,0.01]
[1723751570275,0.17155454,57224.0,57202.0,0.08577727]
[1723751570276,0.2958,57235.0,57234.0,0.03]
[1723751570486,0.0030824,57263.0,57234.0,0.03]
[1723751570487,0.2958,57246.0,57245.0,0.03]
[1723751570703,0.2958,57246.0,57245.0,0.01]
[1723751570970,0.2958,57246.0,57245.0,0.03]
[1723751571203,0.204931,57252.0,57250.0,0.204672]
[1723751571204,0.009031,57252.0,57250.0,0.204672]
[1723751571419,0.009031,57252.0,57250.0,1.26069181]
[1723751571630,0.009031,57252.0,57250.0,1.82946881]
[1723751571842,0.009031,57252.0,57250.0,1.04500354]
[1723751572056,0.009031,57252.0,57250.0,1.54236092]
[1723751572273,0.009031,57252.0,57250.0,1.89170492]
[1723751572486,0.009009,57271.0,57254.0,0.9033]
[1723751572688,0.009009,57271.0,57254.0,1.82938481]
[1723751572893,0.009009,57271.0,57254.0,2.00093935]
[1723751573531,0.009009,57271.0,57254.0,2.00293935]
[1723751573743,0.009009,57271.0,57254.0,1.56584208]
[1723751574164,0.009009,57271.0,57268.0,0.02]